bitfinex-derivatives/quotes_SOLF0:USTF0_20260222
["timestamp","ask_amount","ask_price","bid_price","bid_amount"]
[1771764062940,10.69228206,84.431,84.331,4.75243995]
[1771764062941,10.6663,84.403,84.331,4.75243995]
[1771764063837,10.6648,84.415,84.331,4.75243995]
[1771764064237,10.6648,84.415,84.332,4.72603366]
[1771764064631,19.94361118,84.415,84.332,4.72603366]
[1771764064841,10.6648,84.415,84.334,4.73166947]
[1771764066339,10.6648,84.415,84.338,4.7315146]
[1771764066938,14.42383349,84.448,84.32,213.49150849]
[1771764066939,9.27881118,84.436,84.35,4.84548992]
[1771764067243,165.7541,84.488,84.35,4.84548992]
[1771764067244,9.27881118,84.435,84.35,4.84548992]
[1771764067446,10.6628,84.431,84.364,4.84537735]
[1771764067644,9.27881118,84.43,84.364,4.84537735]
[1771764067845,9.27881118,84.448,84.364,4.84537735]
[1771764068144,19.97109324,84.447,84.364,4.84537735]
[1771764068443,10.6631,84.429,84.364,4.84537735]
[1771764069239,9.25131247,84.428,84.364,4.84537735]
[1771764069438,9.25131247,84.427,84.364,4.84537735]
[1771764069738,10.6631,84.429,84.364,4.84537735]
[1771764070834,10.6631,84.429,84.366,4.83547675]
[1771764071239,10.6642,84.42,84.366,4.83547675]
[1771764072538,10.663,84.429,84.366,4.83547675]
[1771764072945,9.24996085,84.428,84.366,4.83547675]
[1771764073144,10.6629,84.43,84.373,4.8321492]
[1771764073346,9.25043739,84.429,84.373,4.8321492]
[1771764073545,9.25043739,84.428,84.373,4.8321492]
[1771764073748,10.69228206,84.447,84.373,4.8321492]
[1771764073944,9.25037912,84.446,84.373,4.8321492]
[1771764074146,9.25037912,84.445,84.373,4.8321492]
[1771764074346,9.25037912,84.444,84.373,4.8321492]
[1771764074645,19.94266118,84.443,84.373,4.8321492]
[1771764074846,9.25037912,84.442,84.373,4.8321492]
[1771764075147,9.25037912,84.441,84.373,4.8321492]
[1771764075445,9.25037912,84.44,84.359,4.83847177]
[1771764075643,10.69228206,84.434,84.359,4.83847177]
[1771764075843,9.25037912,84.433,84.359,4.83847177]
[1771764076041,9.25037912,84.432,84.359,4.83847177]
[1771764076240,9.25037912,84.431,84.359,4.83847177]
[1771764076441,10.69228206,84.435,84.359,4.83847177]
[1771764076442,9.25037912,84.43,84.359,4.83847177]
[1771764076646,10.6655,84.41,84.359,4.83847177]
[1771764076846,21.6268256,84.457,84.359,4.83847177]
[1771764076847,9.24895162,84.428,84.36,4.83935039]
[1771764077045,9.24895162,84.427,84.36,4.83935039]
[1771764077247,9.24895162,84.426,84.36,4.83935039]
[1771764077544,9.24895162,84.425,84.36,4.83935039]
[1771764077842,10.6643,84.419,84.36,4.83935039]
[1771764083451,10.6631,84.428,84.363,4.85982862]
[1771764083652,9.25116454,84.427,84.363,4.85982862]
[1771764083954,9.25116454,84.426,84.363,4.85982862]
[1771764084149,9.25116454,84.425,84.363,4.85982862]
[1771764084354,10.6635,84.426,84.372,4.85982862]
[1771764084554,9.25122731,84.425,84.372,4.85982862]
[1771764084856,10.6654,84.41,84.353,4.85572243]
[1771764089152,10.6643,84.419,84.357,4.78106109]
[1771764089960,10.6643,84.419,84.363,4.78096369]
[1771764094456,10.6654,84.411,84.353,4.76998194]
[1771764095468,10.6642,84.42,84.355,4.7698886]
[1771764095862,9.25048014,84.419,84.355,4.7698886]
[1771764096068,10.84925713,84.438,84.355,4.7698886]
[1771764096271,9.25255053,84.437,84.355,4.7698886]
[1771764096466,10.84925713,84.438,84.355,4.7698886]
[1771764096467,9.25255053,84.436,84.355,4.7698886]
[1771764096767,9.25255053,84.435,84.355,4.7698886]
[1771764096966,9.25255053,84.434,84.355,4.7698886]
[1771764097161,9.25255053,84.433,84.355,4.7698886]
[1771764097365,9.25255053,84.432,84.355,4.7698886]
[1771764097666,10.6648,84.415,84.356,10.6722]
[1771764097962,10.6648,84.415,84.357,4.74080774]
[1771764100067,9.25480494,84.414,84.357,4.74080774]
[1771764100368,9.25480494,84.413,84.357,4.74080774]
[1771764100667,9.25480494,84.412,84.357,4.74080774]
[1771764100868,9.25480494,84.411,84.357,4.74080774]
[1771764101065,9.25480494,84.41,84.357,4.74080774]
[1771764101266,9.25480494,84.409,84.357,4.74080774]
[1771764101565,9.25480494,84.408,84.357,4.74080774]
[1771764101767,10.6675,84.394,84.339,4.7381164]
[1771764102467,10.84925713,84.422,84.313,4.73530128]
[1771764102468,9.25480494,84.404,84.313,4.73530128]
[1771764102672,165.8926,84.418,84.313,4.73530128]
[1771764102673,10.84925713,84.396,84.313,4.73530128]
[1771764102868,9.23997394,84.395,84.313,4.73530128]
[1771764103067,9.23997394,84.394,84.313,4.73530128]
[1771764103372,21.6268256,84.418,84.313,4.73530128]
[1771764103373,10.6698,84.376,84.313,4.73530128]
[1771764104576,10.6709,84.367,84.313,4.73530128]
[1771764105873,10.6696,84.377,84.315,4.72762431]
[1771764106074,10.84925713,84.408,84.315,4.72762431]
[1771764106271,9.22354829,84.407,84.315,4.72762431]
[1771764106469,10.84925713,84.413,84.315,4.72762431]
[1771764106470,9.22354829,84.406,84.315,4.72762431]
[1771764106670,9.22354829,84.405,84.315,4.72762431]
[1771764106875,10.84925713,84.413,84.281,35.59]
[1771764106876,10.6683,84.387,84.318,4.73979617]
[1771764108674,10.6695,84.378,84.318,4.73979617]
[1771764111369,10.6695,84.378,84.281,35.59]
[1771764111370,10.6681,84.389,84.322,4.75335429]
[1771764112570,10.6681,84.389,84.323,10.6763]
[1771764112770,10.6681,84.389,84.324,4.75638949]
[1771764114772,10.6681,84.389,84.327,4.75840918]
[1771764116177,9.22185655,84.41,84.327,4.75840918]
[1771764116384,9.22185655,84.409,84.327,4.75840918]
[1771764116584,10.83029812,84.42,84.327,4.75840918]
[1771764116585,9.22185655,84.408,84.327,4.75840918]
[1771764116790,10.6679,84.391,84.327,4.75840918]
[1771764119391,10.6666,84.401,84.329,4.74078288]
[1771764119590,9.22185655,84.4,84.329,4.74078288]
[1771764119792,9.22185655,84.399,84.329,4.74078288]
[1771764120093,9.22185655,84.418,84.329,4.74078288]
[1771764120389,27.4774545,84.462,84.28,90.15220749]
[1771764120390,9.22185655,84.417,84.331,4.74078288]
[1771764120592,9.22185655,84.416,84.331,4.74078288]
[1771764120791,9.22185655,84.415,84.331,4.74078288]
[1771764120990,9.22185655,84.414,84.331,4.74078288]
[1771764121184,9.22185655,84.413,84.331,4.74078288]
[1771764121392,9.22185655,84.412,84.334,4.73965812]
[1771764121693,9.22185655,84.411,84.334,4.73965812]
[1771764121890,9.22185655,84.41,84.334,4.73965812]
[1771764122090,9.22185655,84.409,84.334,4.73965812]
[1771764122287,9.22185655,84.408,84.334,4.73965812]
[1771764122487,9.22185655,84.407,84.334,4.73965812]
[1771764122694,10.6674,84.394,84.334,4.73965812]
[1771764124094,21.6268256,84.44,84.28,90.15220749]
[1771764124095,10.6694,84.378,84.317,4.75848643]
[1771764124393,10.82950938,84.41,84.317,4.75848643]
[1771764124394,9.22124417,84.392,84.317,4.75848643]
[1771764124696,9.22124417,84.409,84.317,4.75848643]
[1771764124888,10.82950938,84.413,84.317,4.75848643]
[1771764124889,9.22124417,84.408,84.317,4.75848643]
[1771764125090,10.6671,84.397,84.324,4.76258791]
[1771764125290,9.22124417,84.396,84.324,4.76258791]
[1771764125490,9.22124417,84.395,84.324,4.76258791]
[1771764125689,9.22124417,84.414,84.324,4.76258791]
[1771764125885,9.22124417,84.413,84.324,4.76258791]
[1771764126090,9.22124417,84.412,84.324,4.76258791]
[1771764126291,9.22124417,84.411,84.324,4.76258791]
[1771764126490,9.22124417,84.41,84.324,4.76258791]
[1771764126693,10.6677,84.392,84.324,4.76258791]
[1771764126892,9.22124417,84.408,84.324,4.76258791]
[1771764127094,9.22124417,84.407,84.326,5.03943148]
[1771764127393,10.6676,84.393,84.326,5.03943148]
[1771764128094,10.6676,84.393,84.33,5.03940895]
[1771764130695,35.59,84.44,84.28,62.0]
[1771764130696,10.6688,84.383,84.331,5.02045668]
[1771764131595,35.59,84.406,84.281,5.0204325]
[1771764131794,35.59,84.398,84.281,5.0204325]
[1771764131998,35.59,84.396,84.281,5.0204325]
[1771764132298,9.22416986,84.395,84.281,5.0204325]
[1771764132499,9.22416986,84.394,84.281,5.0204325]
[1771764132693,9.22416986,84.393,84.292,5.02910345]
[1771764132900,9.22416986,84.392,84.292,5.02910345]
[1771764133198,9.22416986,84.391,84.292,5.02910345]
[1771764133399,10.82950938,84.411,84.292,5.02910345]
[1771764133599,165.8485,84.44,84.269,63.74220749]
[1771764133600,10.82950938,84.408,84.316,5.02908198]
[1771764133790,35.59,84.406,84.316,5.02908198]
[1771764133990,9.22399416,84.405,84.316,5.02908198]
[1771764134199,9.22399416,84.404,84.316,5.02908198]
[1771764134493,20.05350354,84.403,84.316,5.02908198]
[1771764134799,9.22399416,84.402,84.316,5.02908198]
[1771764135001,9.22399416,84.401,84.316,5.02908198]
[1771764135202,9.22399416,84.4,84.316,5.02908198]
[1771764135400,9.22399416,84.399,84.316,5.02908198]
[1771764135601,10.6711,84.366,84.316,5.02908198]
[1771764136502,10.6699,84.375,84.316,5.02908198]
[1771764136802,9.22399416,84.374,84.316,5.02908198]
[1771764137203,10.6699,84.375,84.316,5.02908198]
[1771764138197,9.22399416,84.374,84.316,5.02908198]
[1771764138803,10.6699,84.375,84.316,5.02908198]
[1771764139204,9.22399416,84.374,84.316,5.02908198]
[1771764140405,9.22258216,84.374,84.316,5.02908198]
[1771764141104,10.6699,84.375,84.316,5.02908198]
[1771764141302,9.2235949,84.374,84.316,5.02908198]
[1771764141500,9.2235949,84.373,84.316,5.02908198]
[1771764141701,10.6699,84.375,84.316,5.02908198]
[1771764141901,9.2235949,84.374,84.316,5.02908198]
[1771764142104,9.2235949,84.403,84.316,5.02908198]
[1771764142406,9.2235949,84.402,84.316,5.02908198]
[1771764142603,9.2235949,84.401,84.316,5.02908198]
[1771764142804,9.2235949,84.4,84.316,5.02908198]
[1771764143004,9.2235949,84.399,84.316,5.02908198]
[1771764143203,9.2235949,84.398,84.316,5.02908198]
[1771764143408,9.2235949,84.397,84.316,5.02908198]
[1771764143707,10.6678,84.391,84.316,5.02908198]
[1771764144109,9.23477228,84.39,84.316,5.02908198]
[1771764144303,10.6678,84.391,84.316,5.02908198]
[1771764144507,9.23518319,84.39,84.316,5.02908198]
[1771764144709,10.6678,84.391,84.316,5.02908198]
[1771764144907,9.23518319,84.39,84.316,5.02908198]
[1771764145208,10.6678,84.391,84.316,5.02908198]
[1771764145415,10.6666,84.401,84.318,5.00351277]
[1771764145602,9.23752314,84.4,84.318,5.00351277]
[1771764145802,9.23752314,84.399,84.318,5.00351277]
[1771764146000,10.82950938,84.419,84.318,5.00351277]
[1771764146201,14.42383349,84.429,84.318,5.00351277]
[1771764146202,20.06745824,84.418,84.318,5.00351277]
[1771764146404,9.23794886,84.417,84.318,5.00351277]
[1771764146602,10.6658,84.407,84.327,5.00036462]
[1771764146805,9.23794886,84.406,84.327,5.00036462]
[1771764147012,9.23794886,84.405,84.327,5.00036462]
[1771764147203,10.6664,84.403,84.337,5.00036462]
[1771764147707,9.24030096,84.426,84.337,5.00036462]
[1771764147915,9.24030096,84.425,84.35,5.00034434]
[1771764148212,9.24030096,84.424,84.35,5.00034434]
[1771764148408,9.24030096,84.423,84.35,5.00034434]
[1771764148607,10.82950938,84.444,84.35,5.00034434]
[1771764148814,20.06936804,84.443,84.35,5.00034434]
[1771764149010,9.23985866,84.442,84.35,5.00034434]
[1771764149211,9.23985866,84.441,84.35,5.00034434]
[1771764149411,10.6659,84.407,84.35,5.00034434]
[1771764151612,9.23985866,84.43,84.35,5.00034434]
[1771764151811,9.23985866,84.429,84.354,5.17124304]
[1771764152011,9.23985866,84.428,84.354,5.17124304]
[1771764152214,9.22682855,84.446,84.354,5.17124304]
[1771764152510,399.84216316,84.448,84.312,35.59]
[1771764152511,9.22682855,84.445,84.375,5.18094771]
[1771764152705,389.01265378,84.448,84.375,5.18094771]
[1771764153315,389.01265378,84.448,84.387,5.18094771]
[1771764153913,161.7471373,84.469,84.339,35.59]
[1771764153914,161.7471373,84.469,84.389,5.18094801]
[1771764154114,9.22250934,84.468,84.389,5.18094801]
[1771764155016,19.88070934,84.468,84.389,5.18094801]
[1771764155316,9.22250934,84.468,84.389,5.18094801]
[1771764155507,9.20880805,84.468,84.375,10.6697]
[1771764155708,9.20880805,84.467,84.375,5.1247266]
[1771764155913,161.7471373,84.469,84.375,5.1247266]
[1771764156109,10.6585,84.465,84.377,5.1247266]
[1771764156512,161.7471373,84.469,84.377,5.1247266]
[1771764156714,161.7471373,84.469,84.388,5.06485993]
[1771764159722,161.7471373,84.469,84.39,5.02969623]
[1771764160317,161.7471373,84.469,84.403,5.02969623]
[1771764160519,10.6555,84.489,84.403,5.02969623]
[1771764160719,10.6554,84.49,84.403,5.02969623]
[1771764161117,9.18430188,84.507,84.403,5.02969623]
[1771764161321,10.82950938,84.512,84.403,5.02969623]
[1771764161522,9.18430188,84.511,84.403,5.02969623]
[1771764161722,9.18430188,84.51,84.403,5.02969623]
[1771764162019,10.656,84.485,84.403,5.02969623]
[1771764162724,10.6572,84.475,84.403,5.02969623]
[1771764165628,10.6572,84.475,84.361,35.59]
[1771764165629,10.6558,84.487,84.41,5.03082468]
[1771764168222,10.6568,84.479,84.41,5.03082468]
[1771764170928,201.2989,84.511,84.41,5.03082468]
[1771764171129,35.59,84.509,84.41,5.03082468]
[1771764171330,44.77430188,84.509,84.41,5.03082468]
[1771764171525,10.82950938,84.514,84.41,5.03082468]
[1771764171526,10.6593,84.459,84.41,5.03082468]
[1771764172530,10.6575,84.473,84.41,5.03082468]
[1771764172734,9.18430188,84.506,84.41,5.03082468]
[1771764173431,21.3065,84.507,84.41,5.03082468]
[1771764174032,10.658,84.469,84.41,5.03082468]
[1771764176623,9.18430188,84.514,84.421,5.02574006]
[1771764176828,10.82950938,84.519,84.421,5.02574006]
[1771764177224,10.6564,84.482,84.421,5.02574006]
[1771764177727,21.3034,84.519,84.427,5.02572847]
[1771764178735,10.6566,84.48,84.427,5.02572847]
[1771764179538,10.6581,84.469,84.404,5.04147398]
[1771764179737,56.899,84.497,84.404,5.04147398]
[1771764179937,9.18430188,84.496,84.404,5.04147398]
[1771764180640,10.82950938,84.52,84.404,5.04147398]
[1771764180940,32.13190938,84.523,84.404,5.04147398]
[1771764181336,10.82950938,84.521,84.404,5.04147398]
[1771764181642,10.6564,84.481,84.414,5.03519412]
[1771764182040,21.3024,84.523,84.414,5.03519412]
[1771764182241,9.18430188,84.522,84.417,5.03519412]
[1771764182541,21.3024,84.523,84.417,5.03519412]
[1771764182841,35.59,84.517,84.417,5.03519412]
[1771764183040,10.82950938,84.515,84.417,5.03519412]
[1771764183241,10.82950938,84.513,84.417,5.03519412]
[1771764183442,9.18430188,84.512,84.417,5.03519412]
[1771764183635,9.18430188,84.511,84.417,5.03519412]
[1771764183941,9.18430188,84.517,84.417,5.03519412]
[1771764184141,10.82950938,84.523,84.417,5.03519412]
[1771764184339,10.82950938,84.521,84.417,5.03519412]
[1771764184538,9.18430188,84.52,84.417,5.03519412]
[1771764184741,9.18430188,84.519,84.417,5.03519412]
[1771764184941,9.18430188,84.518,84.417,5.03519412]
[1771764185139,10.655,84.493,84.424,5.02224299]
[1771764185540,14.42383349,84.538,84.424,5.02224299]
[1771764185541,9.18430188,84.519,84.424,5.02224299]
[1771764185735,10.6546,84.496,84.424,5.02224299]
[1771764187549,10.6546,84.496,84.434,5.04072924]
[1771764188252,10.6556,84.488,84.434,5.04072924]
[1771764188445,9.18430188,84.518,84.434,5.04072924]
[1771764188643,10.6552,84.491,84.434,5.04072924]
[1771764192844,21.56343615,84.536,84.364,28.15220749]
[1771764192845,10.82950938,84.513,84.435,5.02484705]
[1771764193043,10.82950938,84.509,84.435,5.02484705]
[1771764193344,20.04400018,84.508,84.435,5.02484705]
[1771764193552,9.2144908,84.507,84.438,5.02483403]
[1771764193848,9.2144908,84.506,84.438,5.02483403]
[1771764194048,9.2144908,84.505,84.438,5.02483403]
[1771764194250,9.2144908,84.504,84.438,5.02483403]
[1771764194449,21.2974,84.543,84.438,5.02483403]
[1771764194450,9.2144908,84.503,84.438,5.02483403]
[1771764194643,9.2144908,84.502,84.438,5.02483403]
[1771764194847,9.2144908,84.501,84.438,5.02483403]
[1771764195049,9.2144908,84.5,84.438,5.02483403]
[1771764195351,10.6555,84.489,84.438,5.02483403]
[1771764195953,9.22458478,84.488,84.438,5.02483403]
[1771764196146,9.22458478,84.487,84.438,5.02483403]
[1771764196347,9.22458478,84.486,84.438,5.02483403]
[1771764196547,10.6555,84.489,84.438,5.02483403]
[1771764196548,9.22458478,84.485,84.438,5.02483403]
[1771764196748,9.22458478,84.484,84.438,5.02483403]
[1771764196948,10.6555,84.489,84.438,5.02483403]
[1771764197148,10.6557,84.487,84.438,5.02483403]
[1771764197353,9.2297058,84.486,84.438,5.02483403]
[1771764197554,9.2297058,84.485,84.438,5.02483403]
[1771764197752,9.2297058,84.484,84.438,5.02483403]
[1771764197950,9.2297058,84.483,84.438,5.02483403]
[1771764198149,9.2297058,84.482,84.438,5.02483403]
[1771764198350,10.6557,84.487,84.438,5.02483403]
[1771764198550,9.23713245,84.486,84.438,5.02483403]
[1771764198749,9.23713245,84.485,84.438,5.02483403]
[1771764198950,9.23713245,84.484,84.438,5.02483403]
[1771764199253,9.23713245,84.483,84.438,5.02483403]
[1771764199451,9.23713245,84.482,84.438,5.02483403]
[1771764199746,10.6557,84.487,84.438,5.02483403]
[1771764199951,10.656,84.485,84.438,5.02483403]
[1771764200150,9.23815428,84.484,84.438,5.02483403]
[1771764200452,9.23815428,84.483,84.438,5.02483403]
[1771764200652,9.23815428,84.482,84.438,5.02483403]
[1771764200954,10.656,84.485,84.438,5.02483403]
[1771764201253,9.23935264,84.484,84.415,5.01020674]
[1771764201451,10.82950938,84.502,84.415,5.01020674]
[1771764201452,9.23935264,84.483,84.415,5.01020674]
[1771764201650,9.23935264,84.482,84.415,5.01020674]
[1771764201849,9.23935264,84.481,84.415,5.01020674]
[1771764202050,9.23935264,84.48,84.415,5.01020674]
[1771764202253,9.23935264,84.479,84.415,5.01020674]
[1771764202553,9.23935264,84.478,84.418,5.0101945]
[1771764202755,10.82950938,84.498,84.418,5.0101945]
[1771764203052,9.24105973,84.497,84.418,5.0101945]
[1771764203246,9.24105973,84.496,84.418,5.0101945]
[1771764203452,9.24105973,84.495,84.418,5.0101945]
[1771764203649,10.6576,84.472,84.418,5.0101945]
[1771764203841,10.82950938,84.498,84.418,5.0101945]
[1771764204046,9.2421973,84.497,84.418,5.0101945]
[1771764204246,9.2421973,84.496,84.418,5.0101945]
[1771764204443,9.2421973,84.495,84.418,5.0101945]
[1771764204646,10.6564,84.482,84.418,5.0101945]
[1771764204852,9.2421973,84.481,84.418,5.0101945]
[1771764205147,9.2421973,84.48,84.418,5.0101945]
[1771764205343,10.82950938,84.498,84.418,5.0101945]
[1771764205344,9.2421973,84.479,84.418,5.0101945]
[1771764205545,10.6569,84.478,84.418,5.0101945]
[1771764205948,10.82950938,84.498,84.418,5.0101945]
[1771764206151,9.24458381,84.497,84.418,5.0101945]
[1771764206449,9.24458381,84.496,84.418,5.0101945]
[1771764206651,9.24458381,84.495,84.418,5.0101945]
[1771764206852,9.24458381,84.494,84.418,5.0101945]
[1771764207046,9.24458381,84.493,84.418,5.0101945]
[1771764207244,9.24458381,84.492,84.418,5.0101945]
[1771764207445,9.24458381,84.491,84.418,5.0101945]
[1771764207655,10.6555,84.489,84.425,4.98561065]
[1771764207849,9.24458381,84.488,84.425,4.98561065]
[1771764208048,9.24458381,84.487,84.425,4.98561065]
[1771764208246,9.24458381,84.486,84.425,4.98561065]
[1771764208450,9.24458381,84.485,84.425,4.98561065]
[1771764208650,9.24458381,84.484,84.425,4.98561065]
[1771764208847,10.6573,84.475,84.425,4.98561065]
[1771764209149,10.82950938,84.495,84.405,4.96245957]
[1771764209348,9.24562537,84.494,84.405,4.96245957]
[1771764209552,10.82950938,84.495,84.405,4.96245957]
[1771764209553,9.24562537,84.493,84.405,4.96245957]
[1771764209744,9.24562537,84.493,84.357,166.0096]
[1771764209745,10.6553,84.49,84.423,4.96244529]
[1771764209946,9.24562537,84.489,84.423,4.96244529]
[1771764210155,9.24562537,84.488,84.423,4.96244529]
[1771764210355,9.24562537,84.487,84.423,4.96244529]
[1771764210557,9.24562537,84.486,84.423,4.96244529]
[1771764210753,9.24562537,84.485,84.423,4.96244529]
[1771764210953,9.24562537,84.484,84.423,4.96244529]
[1771764211153,9.24562537,84.483,84.423,4.96244529]
[1771764211456,9.24562537,84.482,84.423,4.96244529]
[1771764211656,9.24562537,84.481,84.423,4.96244529]
[1771764211856,9.24562537,84.48,84.423,4.96244529]
[1771764212054,9.24562537,84.479,84.423,4.96244529]
[1771764212254,10.6553,84.49,84.423,4.96244529]
[1771764212457,10.6558,84.486,84.423,4.96244529]
[1771764212657,9.24677064,84.485,84.432,5.01829897]
[1771764212858,9.24677064,84.484,84.432,5.01829897]
[1771764213060,9.24677064,84.483,84.432,5.01829897]
[1771764213249,9.24677064,84.482,84.432,5.01829897]
[1771764213451,9.24677064,84.481,84.432,5.01829897]
[1771764213657,9.24677064,84.48,84.432,5.01829897]
[1771764213857,10.6546,84.496,84.432,5.01829897]
[1771764214056,10.6549,84.494,84.432,5.01829897]
[1771764214258,10.6549,84.494,84.354,178.0]
[1771764214259,9.24697034,84.493,84.427,5.01829]
[1771764214455,10.82950938,84.486,84.427,5.01829]
[1771764214760,10.6584,84.466,84.427,5.01829]
[1771764214958,10.82950938,84.486,84.427,5.01829]
[1771764215160,9.24554601,84.485,84.427,5.01829]
[1771764215358,9.24554601,84.484,84.427,5.01829]
[1771764215559,9.24554601,84.483,84.427,5.01829]
[1771764215861,9.24554601,84.482,84.427,5.01829]
[1771764216060,9.24554601,84.481,84.427,5.01829]
[1771764216361,9.24554601,84.48,84.427,5.01829]
[1771764216562,9.24554601,84.479,84.427,5.01829]
[1771764216759,10.6575,84.473,84.427,5.01829]
[1771764216958,9.24554601,84.472,84.427,5.01829]
[1771764217157,9.24554601,84.471,84.427,5.01829]
[1771764217462,10.6596,84.456,84.412,4.925325]
[1771764221464,10.82950938,84.48,84.412,4.925325]
[1771764221772,9.25098356,84.479,84.412,4.925325]
[1771764222069,10.6594,84.458,84.412,4.925325]
[1771764222265,9.25098356,84.477,84.412,4.925325]
[1771764222467,10.6582,84.467,84.412,4.925325]
[1771764222667,10.82950938,84.491,84.412,4.925325]
[1771764222869,10.6568,84.478,84.414,4.88219889]
[1771764223069,9.23440709,84.477,84.414,4.88219889]
[1771764223369,10.6568,84.478,84.414,4.88219889]
[1771764223565,9.23545367,84.477,84.414,4.88219889]
[1771764223762,10.6568,84.478,84.414,4.88219889]
[1771764224069,9.23545367,84.477,84.421,4.88218496]
[1771764224271,10.6556,84.488,84.421,4.88218496]
[1771764224464,9.23567999,84.487,84.421,4.88218496]
[1771764224664,9.23567999,84.486,84.424,5.09997528]
[1771764224864,14.42383349,84.508,84.424,5.09997528]
[1771764224865,9.23567999,84.485,84.424,5.09997528]
[1771764225069,10.6543,84.498,84.424,5.09997528]
[1771764225270,9.2368216,84.497,84.424,5.09997528]
[1771764225470,9.2368216,84.496,84.424,5.09997528]
[1771764225666,9.2368216,84.495,84.431,5.09997176]
[1771764225869,9.2368216,84.494,84.431,5.09997176]
[1771764226068,9.2368216,84.493,84.431,5.09997176]
[1771764226272,10.6556,84.488,84.431,5.09997176]
[1771764226468,9.2368216,84.487,84.431,5.09997176]
[1771764226667,9.2368216,84.486,84.431,5.09997176]
[1771764226871,10.6556,84.488,84.431,5.09997176]
[1771764227068,9.23671671,84.487,84.431,5.09997176]
[1771764227272,9.23671671,84.486,84.431,5.09997176]
[1771764227470,10.6556,84.488,84.431,5.09997176]
[1771764227674,9.23637632,84.487,84.431,5.09997176]
[1771764227974,9.23637632,84.486,84.431,5.09997176]
[1771764228276,9.23700082,84.485,84.431,5.09997176]
[1771764228475,10.6556,84.488,84.431,5.09997176]
[1771764228675,9.2370027,84.487,84.431,5.09997176]
[1771764228870,9.2370027,84.486,84.431,5.09997176]
[1771764229078,9.2370027,84.485,84.431,5.09997176]
[1771764229278,10.6556,84.488,84.431,5.09997176]
[1771764229577,9.23681371,84.487,84.431,5.09997176]
[1771764229774,9.23681371,84.486,84.431,5.09997176]
[1771764230079,10.6542,84.499,84.434,5.05392751]
[1771764230279,9.23762392,84.498,84.434,5.05392751]
[1771764230471,9.23762392,84.497,84.434,5.05392751]
[1771764230665,9.23762392,84.496,84.434,5.05392751]
[1771764230869,9.23762392,84.495,84.434,5.05392751]
[1771764231075,9.23762392,84.494,84.434,5.05392751]
[1771764231370,9.23762392,84.493,84.434,5.05392751]
[1771764231576,9.23762392,84.492,84.434,5.05392751]
[1771764231777,9.23762392,84.491,84.438,5.06256991]
[1771764231977,10.6545,84.497,84.438,5.06256991]
[1771764232171,9.23628679,84.496,84.438,5.06256991]
[1771764232370,9.23628679,84.495,84.438,5.06256991]
[1771764232669,9.23628679,84.494,84.438,5.06256991]
[1771764232867,9.23628679,84.493,84.438,5.06256991]
[1771764233068,380.47831787,84.518,84.438,5.06256991]
[1771764233069,10.6555,84.489,84.438,5.06256991]
[1771764233278,10.82950938,84.509,84.438,5.06256991]
[1771764233475,9.23538026,84.508,84.438,5.06256991]
[1771764233676,10.82950938,84.506,84.438,5.06256991]
[1771764233867,10.82950938,84.501,84.438,5.06256991]
[1771764234072,9.23538026,84.5,84.438,5.06256991]
[1771764234273,9.23538026,84.499,84.438,5.06256991]
[1771764234474,9.23538026,84.498,84.438,5.06256991]
[1771764234773,10.6568,84.479,84.438,5.06256991]
[1771764235073,9.23538026,84.478,84.415,5.06624257]
[1771764235377,10.6566,84.48,84.415,5.06624257]
[1771764235573,9.23416457,84.479,84.415,5.06624257]
[1771764235773,9.23416457,84.478,84.415,5.06624257]
[1771764236072,10.6566,84.48,84.415,5.06624257]
[1771764236274,9.23416457,84.479,84.415,5.06624257]
[1771764236472,9.23416457,84.478,84.415,5.06624257]
[1771764236673,10.6566,84.48,84.415,5.06624257]
[1771764236872,9.23445588,84.479,84.415,5.06624257]
[1771764237076,9.23445588,84.478,84.419,5.06965986]
[1771764237375,10.6566,84.48,84.419,5.06965986]
[1771764237576,9.23477139,84.479,84.422,5.06965555]
[1771764237776,9.23477139,84.478,84.422,5.06965555]
[1771764237982,10.82950938,84.497,84.422,5.06965555]
[1771764238179,9.2347742,84.496,84.422,5.06965555]
[1771764238381,9.2347742,84.495,84.422,5.06965555]
[1771764238581,9.2347742,84.494,84.422,5.06965555]
[1771764238784,10.6556,84.488,84.428,5.03370615]
[1771764238981,9.2347742,84.487,84.428,5.03370615]
[1771764239175,9.2347742,84.486,84.428,5.03370615]
[1771764239379,9.2347742,84.485,84.428,5.03370615]
[1771764239580,9.2347742,84.484,84.428,5.03370615]
[1771764239884,9.2347742,84.483,84.428,5.03370615]
[1771764240085,9.2347742,84.482,84.428,5.03370615]
[1771764240285,9.2347742,84.481,84.428,5.03370615]
[1771764240584,9.2347742,84.48,84.428,5.03370615]
[1771764240785,10.6556,84.488,84.43,5.04608169]
[1771764240985,9.23773889,84.487,84.43,5.04608169]
[1771764241288,9.23773889,84.486,84.43,5.04608169]
[1771764241587,10.6563,84.482,84.43,5.04608169]
[1771764241787,9.23773889,84.481,84.43,5.04608169]